fUSD/lending_fUSD_20250616
["ID","MTS","AMOUNT","RATE_DAILY","PERIOD"]
[366168217,1750097452954,-490.0,0.00015887,2]
[366168218,1750097452963,-490.0,0.00015887,2]
[366168219,1750097452973,-490.0,0.00015887,2]
[366168220,1750097452982,-490.0,0.00015887,2]
[366168221,1750097452992,-490.0,0.00015887,2]
[366168222,1750097453001,-490.0,0.00015887,2]
[366168223,1750097453011,-490.0,0.00015887,2]
[366168224,1750097453020,-587.74575189,0.00015887,2]
[366168225,1750097453029,-490.0,0.00015887,2]
[366168226,1750097453039,-490.0,0.00015887,2]
[366168227,1750097453048,-490.0,0.00015887,2]
[366168228,1750097453057,-490.0,0.00015887,2]
[366168229,1750097453067,-599.87,0.00015887,2]
[366168230,1750097453076,-490.0,0.00015887,2]
[366168231,1750097453084,-490.0,0.00015887,2]
[366168232,1750097453094,-490.0,0.00015887,2]
[366168233,1750097453104,-490.0,0.00015887,2]
[366168234,1750097453113,-490.0,0.00015887,2]
[366168235,1750097453122,-490.0,0.00015887,2]
[366168236,1750097453132,-173.35,0.00015887,2]
[366168237,1750097453141,-756.1,0.00015887,2]
[366168238,1750097453150,-858.35,0.00015887,2]
[366168239,1750097453160,-490.0,0.00015887,2]
[366168240,1750097453170,-151.0,0.00015887,2]
[366168241,1750097453179,-490.0,0.00015887,2]
[366168242,1750097453189,-490.0,0.00015887,2]
[366168243,1750097453199,-1269.171004,0.00015887,2]
[366168244,1750097453208,-151.0,0.00015887,2]
[366168245,1750097453218,-490.0,0.00015887,2]
[366168246,1750097453227,-490.0,0.00015887,2]
[366168247,1750097453237,-151.0,0.00015887,2]
[366168248,1750097453246,-236.45295507,0.00015887,2]
[366168249,1750097453255,-490.0,0.00015887,2]
[366168250,1750097453264,-1156.22,0.00015887,2]
[366168251,1750097453274,-490.0,0.00015887,2]
[366168252,1750097453282,-530.95,0.00015887,2]
[366168253,1750097453291,-490.0,0.00015887,2]
[366168254,1750097453301,-490.0,0.00015887,2]
[366168255,1750097453310,-490.0,0.00015887,2]
[366168256,1750097453319,-490.0,0.00015887,2]
[366168257,1750097453329,-490.0,0.00015887,2]
[366168258,1750097453339,-501.0,0.00015887,2]
[366168259,1750097453348,-490.0,0.00015887,2]
[366168260,1750097453357,-490.0,0.00015887,2]
[366168261,1750097453366,-490.0,0.00015887,2]
[366168262,1750097453377,-800.605836,0.00015887,2]
[366168263,1750097453386,-490.0,0.00015887,2]
[366168264,1750097453396,-490.0,0.00015887,2]
[366168265,1750097453405,-363.31088098,0.00015887,2]
[366168266,1750097453414,-490.0,0.00015887,2]
[366168267,1750097453424,-826.14,0.00015887,2]
[366168268,1750097453433,-490.0,0.00015887,2]
[366168269,1750097453442,-490.0,0.00015887,2]
[366168270,1750097453451,-490.0,0.00015887,2]
[366168271,1750097453460,-151.0,0.00015887,2]
[366168272,1750097453469,-490.0,0.00015887,2]
[366168273,1750097453479,-490.0,0.00015887,2]
[366168274,1750097453489,-490.0,0.00015887,2]
[366168275,1750097453498,-490.0,0.00015887,2]
[366168276,1750097453508,-490.0,0.00015887,2]
[366168277,1750097453517,-490.0,0.00015887,2]
[366168278,1750097453527,-490.0,0.00015887,2]
[366168279,1750097453541,-490.0,0.00015887,2]
[366168280,1750097453550,-490.0,0.00015887,2]
[366168281,1750097453559,-490.0,0.00015887,2]
[366168282,1750097453568,-490.0,0.00015887,2]
[366168283,1750097453578,-490.0,0.00015887,2]
[366168284,1750097453587,-490.0,0.00015887,2]
[366168285,1750097453597,-490.0,0.00015887,2]
[366168286,1750097453607,-490.0,0.00015887,2]
[366168287,1750097453617,-1153.5,0.00015887,2]
[366168288,1750097453626,-151.0,0.00015887,2]
[366168289,1750097453635,-151.0,0.00015887,2]
[366168290,1750097453645,-490.0,0.00015887,2]
[366168291,1750097453654,-490.0,0.00015887,2]
[366168292,1750097453663,-500.0,0.00015887,2]
[366168293,1750097453672,-509.45012815,0.00015887,2]
[366168294,1750097453682,-648.75,0.00015887,2]
[366168295,1750097453691,-490.0,0.00015887,2]
[366168296,1750097453701,-992.9,0.00015887,2]
[366168297,1750097453710,-758.65,0.00015887,2]
[366168298,1750097453719,-737.67899622,0.00015887,2]
[366168299,1750097453730,-490.0,0.00015887,2]
[366168300,1750097453739,-490.0,0.00015887,2]
[366168301,1750097453750,-490.0,0.00015887,2]
[366168302,1750097453759,-151.0,0.00015887,2]
[366168303,1750097453769,-463.02365636,0.00015887,2]
[366168304,1750097453779,-490.0,0.00015887,2]
[366168305,1750097453787,-490.0,0.00015887,2]
[366168306,1750097453798,-490.0,0.00015887,2]
[366168307,1750097453808,-151.0,0.00015887,2]
[366168308,1750097453817,-202.261635,0.00015887,2]
[366168309,1750097453828,-490.0,0.00015887,2]
[366168310,1750097453840,-151.0,0.00015887,2]
[366168311,1750097453850,-151.0,0.00015887,2]
[366168312,1750097453859,-490.0,0.00015887,2]
[366168313,1750097453869,-151.0,0.00015887,2]
[366168314,1750097453878,-490.0,0.00015887,2]
[366168315,1750097453888,-490.0,0.00015887,2]
[366168316,1750097453897,-151.0,0.00015887,2]
[366168317,1750097453907,-490.0,0.00015887,2]
[366168318,1750097453916,-842.2,0.00015887,2]
[366168319,1750097453926,-490.0,0.00015887,2]
[366168320,1750097453935,-490.0,0.00015887,2]
[366168321,1750097453944,-1252.4,0.00015887,2]
[366168322,1750097453953,-490.0,0.00015887,2]
[366168323,1750097453963,-730.56,0.00015887,2]
[366168324,1750097453972,-516.24,0.00015887,2]
[366168325,1750097453982,-151.0,0.00015887,2]
[366168326,1750097453991,-989.93,0.00015887,2]
[366168327,1750097454000,-490.0,0.00015887,2]
[366168328,1750097454009,-490.0,0.00015887,2]
[366168329,1750097454019,-490.0,0.00015887,2]
[366168330,1750097454028,-151.0,0.00015887,2]
[366168331,1750097454037,-490.0,0.00015887,2]
[366168332,1750097454047,-490.0,0.00015887,2]
[366168333,1750097454056,-672.45,0.00015887,2]
[366168334,1750097454065,-1119.59,0.00015887,2]
[366168335,1750097454074,-490.0,0.00015887,2]
[366168336,1750097454083,-490.0,0.00015887,2]
[366168337,1750097454092,-718.73,0.00015887,2]
[366168338,1750097454101,-490.0,0.00015887,2]
[366168339,1750097454110,-490.0,0.00015887,2]
[366168340,1750097454119,-952.43,0.00015887,2]
[366168341,1750097454128,-490.0,0.00015887,2]
[366168342,1750097454138,-490.0,0.00015887,2]
[366168343,1750097454147,-490.0,0.00015887,2]
[366168344,1750097454155,-490.0,0.00015887,2]
[366168345,1750097454165,-490.0,0.00015887,2]
[366168346,1750097454173,-1345.75,0.00015887,2]
[366168347,1750097454183,-490.0,0.00015887,2]
[366168348,1750097454192,-490.0,0.00015887,2]
[366168349,1750097454201,-490.0,0.00015887,2]
[366168350,1750097454211,-490.0,0.00015887,2]
[366168351,1750097454220,-490.0,0.00015887,2]
[366168352,1750097454231,-567.46,0.00015887,2]
[366168353,1750097454240,-490.0,0.00015887,2]
[366168354,1750097454249,-490.0,0.00015887,2]
[366168355,1750097454258,-551.79,0.00015887,2]
[366168356,1750097454268,-490.0,0.00015887,2]
[366168357,1750097454277,-490.0,0.00015887,2]
[366168358,1750097454286,-490.0,0.00015887,2]
[366168359,1750097454295,-490.0,0.00015887,2]
[366168360,1750097454304,-1135.62,0.00015887,2]
[366168361,1750097454314,-826.68,0.00015887,2]
[366168362,1750097454323,-895.74,0.00015887,2]
[366168363,1750097454332,-379.51485811,0.00015887,2]
[366168364,1750097454341,-4910.71,0.00015887,2]
[366168365,1750097454350,-490.0,0.00015887,2]
[366168366,1750097454360,-2461.85,0.00015887,2]
[366168367,1750097454369,-490.0,0.00015887,2]
[366168368,1750097454379,-490.0,0.00015887,2]
[366168369,1750097454388,-1093.74,0.00015887,2]
[366168370,1750097454397,-294.15796,0.00015887,2]
[366168371,1750097454407,-490.0,0.00015887,2]
[366168372,1750097454417,-717.88,0.00015887,2]
[366168373,1750097454427,-490.0,0.00015887,2]
[366168374,1750097454436,-294.15796,0.00015887,2]
[366168375,1750097454445,-796.78,0.00015887,2]
[366168376,1750097454455,-625.08,0.00015887,2]
[366168377,1750097454464,-1647.18,0.00015887,2]
[366168378,1750097454473,-543.83,0.00015887,2]
[366168379,1750097454482,-490.0,0.00015887,2]
[366168380,1750097454491,-1130.31,0.00015887,2]
[366168381,1750097454500,-490.0,0.00015887,2]
[366168382,1750097454509,-1081.71,0.00015887,2]
[366168383,1750097454519,-417.859807,0.00015887,2]
[366168384,1750097454530,-490.0,0.00015887,2]
[366168385,1750097454542,-1991.64,0.00015887,2]
[366168386,1750097454551,-490.0,0.00015887,2]
[366168387,1750097454560,-151.0,0.00015887,2]
[366168388,1750097454569,-490.0,0.00015887,2]
[366168389,1750097454580,-490.0,0.00015887,2]
[366168390,1750097454589,-417.859807,0.00015887,2]
[366168391,1750097454598,-829.21,0.00015887,2]
[366168392,1750097454608,-256.534013,0.00015887,2]
[366168393,1750097454618,-151.0,0.00015887,2]
[366168394,1750097454626,-151.0,0.00015887,2]
[366168395,1750097454635,-490.0,0.00015887,2]
[366168396,1750097454645,-862.87,0.00015887,2]
[366168397,1750097454654,-1235.02,0.00015887,2]
[366168398,1750097454663,-690.88,0.00015887,2]
[366168399,1750097454672,-490.0,0.00015887,2]
[366168400,1750097454681,-617.25,0.00015887,2]
[366168401,1750097454690,-1017.88,0.00015887,2]
[366168402,1750097454699,-151.0,0.00015887,2]
[366168403,1750097454708,-490.0,0.00015887,2]
[366168404,1750097454718,-490.0,0.00015887,2]
[366168405,1750097454727,-1749.64,0.00015887,2]
[366168406,1750097454737,-490.0,0.00015887,2]
[366168407,1750097454746,-490.0,0.00015887,2]
[366168408,1750097454756,-152.362097,0.00015887,2]
[366168409,1750097454765,-152.362097,0.00015887,2]
[366168410,1750097454775,-490.0,0.00015887,2]
[366168411,1750097454784,-711.65,0.00015887,2]
[366168412,1750097454793,-2184.74,0.00015887,2]
[366168413,1750097454803,-152.362097,0.00015887,2]
[366168414,1750097454813,-152.362097,0.00015887,2]
[366168415,1750097454822,-490.0,0.00015887,2]
[366168416,1750097454831,-1526.44,0.00015887,2]
[366168417,1750097454841,-490.0,0.00015887,2]
[366168418,1750097454851,-490.0,0.00015887,2]
[366168419,1750097454860,-490.0,0.00015887,2]
[366168420,1750097454869,-490.0,0.00015887,2]
[366168421,1750097454880,-368.65897945,0.00015887,2]
[366168422,1750097454890,-1234.25,0.00015887,2]
[366168423,1750097454899,-2114.77,0.00015887,2]
[366168424,1750097454908,-490.0,0.00015887,2]
[366168425,1750097454918,-224.64,0.00015887,2]
[366168426,1750097454927,-705.05,0.00015887,2]
[366168427,1750097454937,-3019.32,0.00015887,2]
[366168428,1750097454946,-2901.48,0.00015887,2]
[366168429,1750097454955,-151.0,0.00015887,2]
[366168430,1750097454965,-490.0,0.00015887,2]
[366168431,1750097454975,-920.09,0.00015887,2]
[366168432,1750097454984,-3394.88,0.00015887,2]
[366168433,1750097454993,-1259.21,0.00015887,2]
[366168434,1750097455003,-151.0,0.00015887,2]
[366168435,1750097455013,-490.0,0.00015887,2]
[366168436,1750097455022,-747.22,0.00015887,2]
[366168437,1750097455032,-917.9,0.00015887,2]
[366168438,1750097455041,-525.08,0.00015887,2]
[366168439,1750097455050,-490.0,0.00015887,2]
[366168440,1750097455060,-490.0,0.00015887,2]
[366168441,1750097455070,-881.3,0.00015887,2]
[366168442,1750097455079,-959.79,0.00015887,2]
[366168443,1750097455089,-3957.31,0.00015887,2]
[366168444,1750097455099,-2591.73,0.00015887,2]
[366168445,1750097455109,-495.97213732,0.00015887,2]
[366168446,1750097455118,-343.35204611,0.00015887,2]
[366168447,1750097455127,-490.0,0.00015887,2]
[366168448,1750097455136,-1570.26,0.00015887,2]
[366168449,1750097455150,-1178.34,0.00015887,2]
[366168450,1750097455160,-1249.99,0.00015887,2]
[366168451,1750097455170,-490.0,0.00015887,2]
[366168452,1750097455179,-1442.17,0.00015887,2]
[366168453,1750097455191,-816.12,0.00015887,2]
[366168454,1750097455203,-559.14,0.00015887,2]
[366168455,1750097455212,-549.15,0.00015887,2]
[366168456,1750097455222,-705.02,0.00015887,2]
[366168457,1750097455232,-1583.7,0.00015887,2]
[366168458,1750097455243,-490.0,0.00015887,2]
[366168459,1750097455252,-490.0,0.00015887,2]
[366168460,1750097455265,-151.0,0.00015887,2]
[366168461,1750097455275,-151.0,0.00015887,2]
[366168462,1750097455284,-151.0,0.00015887,2]
[366168463,1750097455293,-490.0,0.00015887,2]
[366168464,1750097455303,-660.21,0.00015887,2]
[366168465,1750097455312,-151.0,0.00015887,2]
[366168466,1750097455321,-151.0,0.00015887,2]
[366168467,1750097455330,-933.55,0.00015887,2]
[366168468,1750097455338,-499.89249814,0.00015887,2]
[366168469,1750097455346,-193.842132,0.00015887,2]
[366168470,1750097455355,-572.2,0.00015887,2]
[366168471,1750097455363,-1064.83,0.00015887,2]
[366168472,1750097455372,-490.0,0.00015887,2]
[366168473,1750097455383,-1877.29,0.00015887,2]
[366168474,1750097455394,-490.0,0.00015887,2]
[366168475,1750097455405,-490.0,0.00015887,2]
[366168476,1750097455414,-490.0,0.00015887,2]
[366168477,1750097455424,-490.0,0.00015887,2]
[366168478,1750097455436,-490.0,0.00015887,2]
[366168479,1750097455446,-5808.97,0.00015887,2]
[366168480,1750097455456,-490.0,0.00015887,2]
[366168481,1750097455465,-2003.01,0.00015887,2]
[366168482,1750097455475,-490.0,0.00015887,2]
[366168483,1750097455484,-490.0,0.00015887,2]
[366168484,1750097455493,-1016.09,0.00015887,2]
[366168485,1750097455502,-490.0,0.00015887,2]
[366168486,1750097455511,-490.0,0.00015887,2]
[366168487,1750097455520,-1379.16,0.00015887,2]
[366168488,1750097455531,-490.0,0.00015887,2]
[366168489,1750097455543,-543.98,0.00015887,2]
[366168490,1750097455552,-5973.49,0.00015887,2]
[366168491,1750097455562,-556.11,0.00015887,2]
[366168492,1750097455571,-583.93,0.00015887,2]
[366168493,1750097455581,-151.133852,0.00015887,2]
[366168494,1750097455590,-627.85262849,0.00015887,2]
[366168495,1750097455600,-2191.82,0.00015887,2]
[366168496,1750097455610,-2541.52,0.00015887,2]
[366168497,1750097455621,-490.0,0.00015887,2]
[366168498,1750097455630,-1589.64,0.00015887,2]
[366168499,1750097455640,-490.0,0.00015887,2]
[366168500,1750097455649,-490.0,0.00015887,2]
[366168501,1750097455659,-1169.98,0.00015887,2]
[366168502,1750097455668,-2216.25,0.00015887,2]
[366168503,1750097455677,-4248.73,0.00015887,2]
[366168504,1750097455687,-490.0,0.00015887,2]
[366168505,1750097455696,-1098.11,0.00015887,2]
[366168506,1750097455705,-651.19,0.00015887,2]
[366168507,1750097455715,-490.0,0.00015887,2]
[366168508,1750097455725,-707.97,0.00015887,2]
[366168509,1750097455734,-490.0,0.00015887,2]
[366168510,1750097455744,-490.0,0.00015887,2]
[366168511,1750097455754,-490.0,0.00015887,2]
[366168512,1750097455764,-293.278158,0.00015887,2]
[366168513,1750097455773,-490.0,0.00015887,2]
[366168514,1750097455782,-748.31,0.00015887,2]
[366168515,1750097455792,-695.28,0.00015887,2]
[366168516,1750097455801,-1609.92,0.00015887,2]
[366168517,1750097455812,-986.22,0.00015887,2]
[366168518,1750097455821,-490.0,0.00015887,2]
[366168519,1750097455831,-490.0,0.00015887,2]
[366168520,1750097455841,-293.278158,0.00015887,2]
[366168521,1750097455851,-775.78,0.00015887,2]
[366168522,1750097455861,-490.0,0.00015887,2]
[366168523,1750097455871,-490.0,0.00015887,2]
[366168524,1750097455880,-908.9,0.00015887,2]
[366168525,1750097455890,-593.17,0.00015887,2]
[366168526,1750097455899,-1730.21,0.00015887,2]
[366168527,1750097455908,-151.0,0.00015887,2]
[366168528,1750097455918,-2098.49,0.00015887,2]
[366168529,1750097455926,-1940.76,0.00015887,2]
[366168530,1750097456091,-490.0,0.00015887,2]
[366168531,1750097456102,-151.0,0.00015887,2]
[366168532,1750097456112,-490.0,0.00015887,2]
[366168533,1750097456122,-538.8,0.00015887,2]
[366168534,1750097456131,-597.7,0.00015887,2]
[366168535,1750097456141,-490.0,0.00015887,2]
[366168536,1750097456150,-490.0,0.00015887,2]
[366168537,1750097456160,-1456.14,0.00015887,2]
[366168538,1750097456169,-151.0,0.00015887,2]
[366168539,1750097456178,-324.03,0.00015887,2]
[366168540,1750097456188,-490.0,0.00015887,2]
[366168541,1750097456199,-151.0,0.00015887,2]
[366168542,1750097456211,-490.0,0.00015887,2]
[366168543,1750097456222,-571.68,0.00015887,2]
[366168544,1750097456232,-706.67,0.00015887,2]
[366168545,1750097456241,-2767.0,0.00015887,2]
[366168546,1750097456253,-2318.25,0.00015887,2]
[366168547,1750097456262,-550.15,0.00015887,2]
[366168548,1750097456272,-569.59,0.00015887,2]
[366168549,1750097456282,-1192.81,0.00015887,2]
[366168550,1750097456292,-561.67,0.00015887,2]
[366168551,1750097456302,-4911.12,0.00015887,2]
[366168552,1750097456312,-13414.35,0.00015887,2]
[366168553,1750097456322,-490.0,0.00015887,2]
[366168554,1750097456331,-490.0,0.00015887,2]
[366168555,1750097456341,-491.02451642,0.00015887,2]
[366168556,1750097456352,-3575.07,0.00015887,2]
[366168557,1750097456361,-5130.5,0.00015887,2]
[366168558,1750097456371,-490.0,0.00015887,2]
[366168559,1750097456381,-490.0,0.00015887,2]
[366168560,1750097456391,-690.53,0.00015887,2]
[366168561,1750097456401,-490.0,0.00015887,2]
[366168562,1750097456410,-490.0,0.00015887,2]
[366168563,1750097456420,-490.0,0.00015887,2]
[366168564,1750097456429,-1923.82,0.00015887,2]
[366168565,1750097456439,-490.0,0.00015887,2]
[366168566,1750097456448,-400.09667656,0.00015888,2]
[366168567,1750097456457,-490.0,0.00015888,2]
[366168568,1750097456467,-490.0,0.00015888,2]
[366168569,1750097456476,-490.0,0.00015888,2]
[366168570,1750097456486,-490.0,0.00015888,2]
[366168571,1750097456495,-490.0,0.00015888,2]
[366168572,1750097456505,-490.0,0.00015888,2]
[366168573,1750097456514,-490.0,0.00015888,2]
[366168574,1750097456524,-985.41,0.00015888,2]
[366168575,1750097456537,-490.0,0.00015888,2]
[366168576,1750097456547,-490.0,0.00015888,2]
[366168577,1750097456557,-460.61,0.00015888,2]
[366168578,1750097456567,-490.0,0.00015888,2]
[366168579,1750097456578,-490.0,0.00015888,2]
[366168580,1750097456587,-490.0,0.00015888,2]
[366168581,1750097456596,-490.0,0.00015888,2]
[366168582,1750097456606,-490.0,0.00015888,2]
[366168583,1750097456616,-490.0,0.00015888,2]
[366168584,1750097456628,-490.0,0.00015888,2]
[366168585,1750097456638,-490.0,0.00015888,2]
[366168586,1750097456648,-513.39,0.00015888,2]
[366168587,1750097456657,-490.0,0.00015888,2]
[366168588,1750097456667,-490.0,0.00015888,2]
[366168589,1750097456676,-490.0,0.00015888,2]
[366168590,1750097456686,-490.0,0.00015888,2]
[366168591,1750097456695,-490.0,0.00015888,2]
[366168592,1750097456705,-490.0,0.00015888,2]
[366168593,1750097456714,-575.87,0.00015888,2]
[366168594,1750097456723,-152.409593,0.00015888,2]
[366168595,1750097456733,-509.03,0.00015888,2]
[366168596,1750097456743,-490.0,0.00015888,2]
[366168597,1750097456752,-635.28,0.00015888,2]
[366168598,1750097456762,-490.0,0.00015888,2]
[366168599,1750097456772,-151.0,0.00015888,2]
[366168600,1750097456782,-490.0,0.00015888,2]
[366168601,1750097456792,-151.0,0.00015888,2]
[366168602,1750097456802,-490.0,0.00015888,2]
[366168603,1750097456813,-255.37,0.00015888,2]
[366168604,1750097456822,-490.0,0.00015888,2]
[366168605,1750097456832,-490.0,0.00015888,2]
[366168606,1750097456842,-490.0,0.00015888,2]
[366168607,1750097456852,-490.0,0.00015888,2]
[366168608,1750097456862,-490.0,0.00015888,2]
[366168609,1750097456872,-490.0,0.00015888,2]
[366168610,1750097456881,-490.0,0.00015888,2]
[366168611,1750097456891,-635.33,0.00015888,2]
[366168612,1750097456901,-151.0,0.00015888,2]
[366168613,1750097456911,-490.0,0.00015888,2]
[366168614,1750097456920,-490.0,0.00015888,2]
[366168615,1750097456930,-151.0,0.00015888,2]
[366168616,1750097456940,-151.0,0.00015888,2]
[366168617,1750097456949,-490.0,0.00015888,2]
[366168618,1750097456959,-490.0,0.00015888,2]
[366168619,1750097456969,-490.0,0.00015888,2]
[366168620,1750097456979,-490.0,0.00015888,2]
[366168621,1750097456988,-490.0,0.00015888,2]
[366168622,1750097456998,-614.25312638,0.00015888,2]
[366168623,1750097457008,-490.0,0.00015888,2]
[366168624,1750097457017,-490.0,0.00015888,2]
[366168625,1750097457027,-490.0,0.00015888,2]
[366168626,1750097457036,-490.0,0.00015888,2]
[366168627,1750097457046,-490.0,0.00015888,2]
[366168628,1750097457057,-151.0,0.00015888,2]
[366168629,1750097457066,-490.0,0.00015888,2]
[366168630,1750097457076,-490.34664535,0.00015888,2]
[366168631,1750097457087,-151.0,0.00015888,2]
[366168632,1750097457096,-490.0,0.00015888,2]
[366168633,1750097457105,-490.0,0.00015888,2]
[366168634,1750097457115,-490.0,0.00015888,2]
[366168635,1750097457125,-490.0,0.00015888,2]
[366168636,1750097457135,-490.0,0.00015888,2]
[366168637,1750097457144,-490.0,0.00015888,2]
[366168638,1750097457153,-490.0,0.00015888,2]
[366168639,1750097457163,-490.0,0.00015888,2]
[366168640,1750097457173,-842.4,0.00015888,2]
[366168641,1750097457183,-151.0,0.00015888,2]
[366168642,1750097457192,-490.0,0.00015888,2]
[366168643,1750097457201,-490.0,0.00015888,2]
[366168644,1750097457211,-496.34203918,0.00015888,2]
[366168645,1750097457222,-490.0,0.00015888,2]
[366168646,1750097457232,-490.0,0.00015888,2]
[366168647,1750097457242,-733.09,0.00015888,2]
[366168648,1750097457251,-490.0,0.00015888,2]
[366168649,1750097457260,-490.0,0.00015888,2]
[366168650,1750097457271,-492.86861285,0.00015888,2]
[366168651,1750097457281,-688.876505,0.00015888,2]
[366168652,1750097457292,-298.66829476,0.00015888,2]
[366168653,1750097457302,-490.0,0.00015888,2]
[366168654,1750097457311,-571.44,0.00015888,2]
[366168655,1750097457322,-490.0,0.00015888,2]
[366168656,1750097457331,-151.0,0.00015888,2]
[366168657,1750097457342,-490.0,0.00015888,2]
[366168658,1750097457351,-160.11301875,0.00015888,2]
[366168659,1750097457361,-613.01,0.00015888,2]
[366168660,1750097457371,-490.0,0.00015888,2]
[366168661,1750097457382,-583.56,0.00015888,2]
[366168662,1750097457392,-490.0,0.00015888,2]
[366168663,1750097457402,-907.12,0.00015888,2]
[366168664,1750097457412,-151.0,0.00015888,2]
[366168665,1750097457421,-151.0,0.00015888,2]
[366168666,1750097457431,-498.36594803,0.00015888,2]
[366168667,1750097457440,-151.0,0.00015888,2]
[366168668,1750097457452,-494.22,0.00015888,2]
[366168669,1750097457465,-460.67086211,0.00015888,2]
[366168670,1750097457474,-490.0,0.00015888,2]
[366168671,1750097457483,-736.9,0.00015888,2]
[366168672,1750097457493,-151.0,0.00015888,2]
[366168673,1750097457504,-500.0,0.00015888,2]
[366168674,1750097457515,-490.0,0.00015888,2]
[366168675,1750097457524,-151.0,0.00015888,2]
[366168676,1750097457539,-490.0,0.00015888,2]
[366168677,1750097457551,-490.0,0.00015888,2]
[366168678,1750097457561,-1170.23,0.00015888,2]
[366168679,1750097457572,-490.0,0.00015888,2]
[366168680,1750097457583,-490.0,0.00015888,2]
[366168681,1750097457592,-490.0,0.00015888,2]
[366168682,1750097457602,-151.0,0.00015888,2]
[366168683,1750097457612,-490.0,0.00015888,2]
[366168684,1750097457622,-490.0,0.00015888,2]
[366168685,1750097457634,-658.16,0.00015888,2]
[366168686,1750097457644,-713.7,0.00015888,2]
[366168687,1750097457654,-775.4,0.00015888,2]
[366168688,1750097457663,-405.66006389,0.00015888,2]
[366168689,1750097457673,-490.0,0.00015888,2]
[366168690,1750097457682,-151.0,0.00015888,2]
[366168691,1750097457692,-490.0,0.00015888,2]
[366168692,1750097457705,-262.45183,0.00015888,2]
[366168693,1750097457715,-490.0,0.00015888,2]
[366168694,1750097457726,-490.0,0.00015888,2]
[366168695,1750097457735,-650.98,0.00015888,2]
[366168696,1750097457745,-490.0,0.00015888,2]
[366168697,1750097457755,-266.63435842,0.00015888,2]
[366168698,1750097457765,-490.0,0.00015888,2]
[366168699,1750097457775,-727.19,0.00015888,2]
[366168700,1750097457785,-490.0,0.00015888,2]
[366168701,1750097457796,-490.0,0.00015888,2]
[366168702,1750097457807,-490.0,0.00015888,2]
[366168703,1750097457817,-895.18,0.00015888,2]
[366168704,1750097457827,-671.04,0.00015888,2]
[366168705,1750097457836,-509.39,0.00015888,2]
[366168706,1750097457846,-490.0,0.00015888,2]
[366168707,1750097457857,-490.0,0.00015888,2]
[366168708,1750097457867,-720.72,0.00015888,2]
[366168709,1750097457876,-490.0,0.00015888,2]
[366168710,1750097457886,-757.48,0.00015888,2]
[366168711,1750097457895,-490.0,0.00015888,2]
[366168712,1750097457905,-151.0,0.00015888,2]
[366168713,1750097457915,-490.0,0.00015888,2]
[366168714,1750097457924,-151.0,0.00015888,2]
[366168715,1750097457933,-490.0,0.00015888,2]
[366168716,1750097457943,-490.0,0.00015888,2]